Cogmind - Beta 15 @@@ ROGUE MODE // 2025.10.08 @ 20:01:17 Player: weedlord420 Result: Destroyed by Y-45 Defender with Beam Rifle Performance ------------- Evolutions (0) 0 Regions Visited (3) 600 Robots Destroyed (28) 140 Value Destroyed (891) 891 Prototype IDs (11) 220 Alien Tech Used (0) 0 Bonus (-6) -6 TOTAL SCORE: 1845 Bonus ------- Friendly Fire -6 Cogmind --------- Core Integrity 0/250 Matter 275/300 Energy 200/200 System Corruption 3% Temperature Cool (9) Movement Treading (240) Ox1 Location -9/Recycling Parts ------- > --- POWER (1) -------- Subdweller Power Source > --- PROPULSION (2) --- Light Treads Light Treads > --- UTILITY (2) ------ High-capacity Storage Unit Machine Analyzer > --- WEAPON (2) ------- Subdweller Shrapnel Launcher Ripper > --- INVENTORY (20) --- Arachnoskeleton Cobbler Unit SUBCON Basin (Full) Peak State ------------ > --- POWER ------------ Subdweller Power Source > --- PROPULSION ------- Light Treads Light Treads > --- UTILITY ---------- High-capacity Storage Unit Machine Analyzer > --- WEAPON ----------- Subdweller Shrapnel Launcher Ripper > --- INVENTORY -------- Arachnoskeleton Cobbler Unit SUBCON Basin [Rating: 34] Favorites ----------- Power Subdweller Power Source Engine Subdweller Power Source Propulsion Light Treads Treads Light Treads Wheel Compact Wheel Utility High-capacity Storage Unit Device Structural Scanner Storage High-capacity Storage Unit Processor Machine Analyzer Protection Makeshift Light Armor Plating Weapon Light Assault Rifle Energy Cannon Subdweller Beam Cannon Ballistic Gun Light Assault Rifle Launcher Subdweller Shrapnel Launcher Special Weapon Mining Laser Slashing Weapon Ripper Build | -11 -10 -10 -9 ------- Run | Yrd Mat Sub Rec Slots Evolved . | . . . . Power . | . . . . Propulsion . | . . . . Utility . | . . . . Weapon . | . . . . Parts Attached 33 | 6 8 19 . Power 5 | 1 . 4 . Engine 5 | 1 . 4 . Core . | . . . . Reactor . | . . . . Propulsion 10 | 2 2 6 . Treads 8 | . 2 6 . Leg . | . . . . Wheel 2 | 2 . . . Hover . | . . . . Flight . | . . . . Utility 9 | 1 5 3 . Device 2 | . 2 . . Storage 2 | 1 1 . . Processor 1 | . . 1 . Hackware . | . . . . Protection 4 | . 2 2 . Artifact . | . . . . Weapon 9 | 2 1 6 . Energy Gun . | . . . . Energy Cannon 1 | . . 1 . Ballistic Gun 4 | 2 . 2 . Ballistic Cannon . | . . . . Launcher 2 | . 1 1 . Special Weapon 1 | . . 1 . Impact Weapon . | . . . . Slashing Weapon 1 | . . 1 . Piercing Weapon . | . . . . Special Melee Weapon . | . . . . Unidentified Prototypes . | . . . . Parts Lost 2 | . . 2 . Power 1 | . . 1 . Propulsion . | . . . . Utility 1 | . . 1 . Weapon . | . . . . Highest Loss Streak 1 | . . 1 . To Critical Strikes . | . . . . Average Backups 14 | 3 12 16 2 Power 1 | 1 . 2 . Propulsion 3 | 1 4 3 1 Utility 6 | . 6 7 1 Weapon 2 | . 2 3 . Tool/Special . | . . . . Unused Backups 15 | . 3 10 2 Power 3 | . 1 2 . Propulsion 2 | . . 1 1 Utility 7 | . 1 5 1 Weapon 3 | . 1 2 . Tool/Special . | . . . . Average Slot Usage (%) 98 | . 96 99 100 Engine 13 | . 13 13 14 Treads 20 | . 3 28 28 Wheel 7 | . 24 . . Device 8 | . 9 8 . Storage 14 | . 14 14 14 Processor 1 | . . 1 14 Protection 3 | . 1 4 . Energy Cannon 7 | . . 10 . Ballistic Gun 10 | . 25 4 . Launcher 1 | . 1 1 14 Special Weapon 1 | . . 2 . Slashing Weapon 6 | . . 9 14 Peak Build Rating 34 | 6 9 34 34 Average Rating 15 | 3 7 17 34 On Entrance 12 | . 6 9 34 Naked Turns . | . . . . Heaviest Build 62 | 12 52 62 56 Greatest Support 40 | 26 40 40 40 Greatest Overweight (x) 1 | . 1 1 1 Average Overweight (x) . | . . 1 1 Largest Inventory Capacity 20 | 8 20 20 20 Average Capacity 19 | 5 17 20 20 Most Carried 20 | 5 19 20 20 Average Carried 17 | 3 12 19 20 Final Capacity 20 | 8 20 20 20 Final Carried 20 | 4 19 20 20 Class Distribution -------------------- 100% | Mutant Dominant Class ---------------- Mutant | -10/Materials Mutant | -10/Subcaves Mutant | -9/Recycling Resources | -11 -10 -10 -9 ----------- Run | Yrd Mat Sub Rec Matter Collected 1303 | 226 426 651 . Remotely . | . . . . Salvage Created 1135 | . 453 632 50 Parts 68 | . 26 38 4 Haulers Intercepted 1 | . 1 . . Recyclers Shooed 1 | . 1 . . Parts Field Recycled . | . . . . Retrieved Matter . | . . . . Parts Self-Destructed 7 | . . 7 . Prevented . | . . . . Kills | -11 -10 -10 -9 ------- Run | Yrd Mat Sub Rec Combat Hostiles Destroyed 23 | . 9 13 1 Melee 8 | . . 7 1 Guns 9 | . 4 5 . AOE 5 | . 5 . . Classes Destroyed 10 | . 6 4 . Tunneler 1 | . 1 . . Hauler 1 | . 1 . . Recycler 1 | . 1 . . Watcher 2 | . 2 . . Swarmer 3 | . 3 . . Grunt 7 | . 6 1 . Sentry 2 | . . 1 1 Artisan 1 | . . 1 . Cobbler 1 | . . 1 . Subdweller 11 | . . 11 . Best Kill Streak 5 | . 5 2 1 Combat Bots Only 5 | . 5 2 1 Max Kills in Single Turn 3 | . 3 1 1 Gunslinging . | . . . . Exploded 3 | . 3 . . Melee 1 | . . 1 1 Uniques/NPCs Destroyed . | . . . . Combat | -11 -10 -10 -9 -------- Run | Yrd Mat Sub Rec Hostile Shots Fired 118 | . 13 92 13 Missed 40 | . 5 30 5 Hits 78 | . 8 62 8 Projectile 78 | . 8 62 8 Critical Strikes 1 | . . 1 . Damage Taken 1621 | . 101 1402 118 Core 261 | . . 206 55 Absorbed by Shields . | . . . . Core Remaining (%) 100 | 100 . . . Volleys Fired 102 | . 59 43 . Largest 2 | . 2 2 . Hottest 110 | . 50 110 . Shots Fired 191 | . 115 76 . Gun 165 | . 108 57 . Cannon 11 | . . 11 . Launcher 7 | . 7 . . Special 8 | . . 8 . Kinetic 165 | . 108 57 . Thermal 19 | . . 19 . Explosive 7 | . 7 . . Electromagnetic . | . . . . Robot Hit Streak 13 | . 13 9 . Robot Miss Streak 6 | . 6 2 . Penetration Max . | . . . . Secondary Targets 1 | . . 1 . Max Gunslinging Chain 1 | . . 1 . Shots Hit Robots 144 | . 74 69 1 Core Hits 54 | . 32 21 1 Critical Kills 1 | . . 1 . Critical Parts Destroyed . | . . . . Critical Strikes 2 | . . 2 . Meltdown 1 | . . 1 . Destroy 1 | . . 1 . Melee Attacks 51 | . . 43 8 Impact . | . . . . Slashing 51 | . . 43 8 Piercing . | . . . . Sneak Attacks 1 | . . 1 . Combat Hostiles . | . . . . Follow-up Attacks . | . . . . Damage Inflicted 2416 | . 840 1535 41 Guns 1200 | . 587 613 . Cannons 113 | . . 113 . Explosions 253 | . 253 . . Melee 850 | . . 809 41 Ramming . | . . . . Kinetic 1200 | . 587 613 . Thermal 113 | . . 113 . Explosive 253 | . 253 . . Electromagnetic . | . . . . Impact . | . . . . Slashing 850 | . . 809 41 Piercing . | . . . . Highest Corruption 3 | . 3 3 3 Average Corruption 2 | . 2 3 3 Corruption Purged . | . . . . Corruption Blocked . | . . . . Effects 71 | . 11 57 3 Message Errors 25 | . 7 17 1 Matter Fused 18 | . 2 14 2 Heat Flow Errors 2 | . 1 1 . Energy Discharges 8 | . 1 7 . Parts Fused 1 | . . 1 . Data Loss (minor) 6 | . . 6 . Data Loss (major) 7 | . . 7 . Misfires 3 | . . 3 . Alerts 1 | . . 1 . Overload Shots . | . . . . Overflow Damage 59 | . . 59 . Projectiles 1 | . . 1 . Explosions . | . . . . Melee 58 | . . 58 . Knockbacks . | . . . . Impact . | . . . . Kinetic . | . . . . Secondary . | . . . . Self-Inflicted Damage . | . . . . Shots . | . . . . Rammed . | . . . . Targets Rammed . | . . . . Kicked . | . . . . Crushed . | . . . . Highest Temperature 250 | . 250 242 . Average Temperature 53 | . 38 79 . Received Heat Transfer 703 | . 57 601 45 Siege Activations . | . . . . Martial Activations . | . . . . Shielding Activations . | . . . . Robots Disrupted . | . . . . Combat Hostiles . | . . . . Robots Corrupted . | . . . . Combat Hostiles . | . . . . Parts Fried . | . . . . Impact Corruptions . | . . . . Robots Melted 1 | . . 1 . Combat Hostiles 1 | . . 1 . Parts Melted 1 | . . 1 . Heat Transferred 148 | . . 148 . Parts Sabotaged . | . . . . Parts Stolen . | . . . . Parts Stripped . | . . . . Power Chain Reactions . | . . . . Alert | -11 -10 -10 -9 ------- Run | Yrd Mat Sub Rec Maximum Alert Level . | . . . . Low Security (%) 100 | 100 100 . 100 Level 1 . | . . . . Level 2 . | . . . . Level 3 . | . . . . Level 4 . | . . . . Level 5 . | . . . . High Security . | . . . . Max Security . | . . . . Peak Influence 187 | . 187 . 20 Initial . | . . . . Average 26 | . 31 . . Influence Increases 402 | . 336 40 26 Destroy 0b10 Robot/C 240 | . 180 40 20 Destroy 0b10 Robot/NC 25 | . 25 . . Destroy Leader 46 | . 46 . . Successful Hack 14 | . 14 . . Disable Machine 30 | . 30 . . Destroy Structure 47 | . 41 . 6 Influence Decreases 382 | . 177 199 6 Entered New Map 77 | . . 77 . Time Decay 295 | . 177 112 6 Lost Part 10 | . . 10 . Squads Dispatched 1 | . 1 . . Investigation 1 | . 1 . . Extermination . | . . . . Reinforcement . | . . . . Assault . | . . . . Garrison . | . . . . Intercept . | . . . . Searches Triggered . | . . . . Construction Impeded . | . . . . Haulers Reinforced . | . . . . Active Scanning Responses . | . . . . Cargo Convoy Interrupts . | . . . . Stealth | -11 -10 -10 -9 --------- Run | Yrd Mat Sub Rec Distress Signals 1 | . 1 . . Communications Jammed . | . . . . Distress Signals . | . . . . Times Spotted 33 | . 17 14 2 Peak Tracking Total 4 | . 4 2 2 Tactical Retreats . | . . . . Traps | -11 -10 -10 -9 ------- Run | Yrd Mat Sub Rec Traps Triggered 4 | . 4 . . Indirectly . | . . . . Trap Hack Attempts . | . . . . Triggered . | . . . . Disarmed . | . . . . Reprogrammed . | . . . . Reused . | . . . . Traps Extracted . | . . . . Installed . | . . . . Triggered . | . . . . Machines | -11 -10 -10 -9 ---------- Run | Yrd Mat Sub Rec Machines Disabled 3 | . 2 1 . Max in Single Turn 2 | . 2 1 . Machines Repaired . | . . . . Machines Dismantled . | . . . . Machines Sabotaged . | . . . . Overloaded Fab Kills . | . . . . Hacking | -11 -10 -10 -9 --------- Run | Yrd Mat Sub Rec Machines Accessed 11 | . 8 3 . Terminals 7 | . 7 . . Fabricators . | . . . . Repair Stations . | . . . . Recycling Units 1 | . 1 . . Scanalyzers . | . . . . Garrison Access . | . . . . Total Hacks 29 | . 17 12 . Successful 16 | . 4 12 . Failed 13 | . 13 . . Catastrophic 2 | . 2 . . Database Lockouts . | . . . . Manual 12 | . 12 . . Terminals 15 | . 15 . . Fabricators . | . . . . Repair Stations . | . . . . Recycling Units 2 | . 2 . . Scanalyzers . | . . . . Garrison Access . | . . . . Terminal Hacks 13 | . 1 12 . Record 9 | . . 9 . Robot Analysis 1 | . 1 . . Open Door 1 | . . 1 . Proto ID Catalog 1 | . . 1 . Release Object 1 | . . 1 . Fabricator Hacks . | . . . . Repair Station Hacks . | . . . . Recycling Unit Hacks 1 | . 1 . . Retrieve Matter 1 | . 1 . . Scanalyzer . | . . . . Garrison Access Hacks . | . . . . Unauthorized Hacks 2 | . 2 . . Terminals 2 | . 2 . . Track 1 | . 1 . . Operators 1 | . 1 . . Fabricators . | . . . . Repair Stations . | . . . . Recycling Units . | . . . . Scanalyzers . | . . . . Garrison Access . | . . . . Data Cores Recovered . | . . . . Used . | . . . . Hacking Detections 8 | . 8 . . Full Trace Events 1 | . 1 . . Feedback Events 1 | . 1 . . Corruption 1 | . 1 . . Feedback Blocked . | . . . . Robot Schematics Acquired . | . . . . Robots Built . | . . . . Authchips . | . . . . Time . | . . . . Total Robot Build Rating . | . . . . Part Schematics Acquired . | . . . . Parts Built . | . . . . Authchips . | . . . . Time . | . . . . Total Part Build Rating . | . . . . Parts Repaired . | . . . . Time . | . . . . Parts Recycled . | . . . . Recycled Matter . | . . . . Retrieved Matter . | . . . . Retrieved Components . | . . . . Parts Scanalyzed . | . . . . Part Schematics Acquired . | . . . . Parts Damaged . | . . . . Bothacking | -11 -10 -10 -9 ------------ Run | Yrd Mat Sub Rec Used RIF Installer . | . . . . Robots Hacked . | . . . . Non-combat . | . . . . Combat . | . . . . Robot Hacks Applied . | . . . . Relay Couplers Released . | . . . . Fabnet Peak Effective % . | . . . . Robots Rewired . | . . . . Allies Hacked . | . . . . Hacks Repelled . | . . . . Allies | -11 -10 -10 -9 -------- Run | Yrd Mat Sub Rec Total Allies . | . . . . Largest Group . | . . . . Highest-Rated Group . | . . . . Highest-Rated Ally . | . . . . Total Orders . | . . . . Ally Attacks . | . . . . Total Damage . | . . . . Kills . | . . . . Allies Corrupted . | . . . . Allies Melted . | . . . . Intel | -11 -10 -10 -9 ------- Run | Yrd Mat Sub Rec Active Infowar (turns) 2857 | . 804 1876 177 Structural 2388 | . 751 1637 . Seismic 53 | . 53 . . Machine Analysis 416 | . . 239 177 Robot Analysis Total 1 | . 1 . . Derelict Logs Recovered 1 | . . 1 . Drone Launches . | . . . . Drone Recoveries . | . . . . Exploration | -11 -10 -10 -9 ------------- Run | Yrd Mat Sub Rec Turns Passed 4225 | 47 1220 2781 177 Spaces Moved 1903 | 42 810 988 63 Core 13 | 13 . . . Treads 1085 | . 34 988 63 Legs . | . . . . Wheels 805 | 29 776 . . Hover . | . . . . Flight . | . . . . Fastest Speed 50 | 50 90 240 240 Average Speed 181 | 77 106 243 240 Slowest Speed 250 | 100 240 250 240 Overloaded Moves . | . . . . Propulsion Burnouts . | . . . . Robots Hopped . | . . . . Potential Cave-ins . | . . . . Cave-ins Triggered . | . . . . Exploration Rate (%) 42 | 3 97 59 9 Regions Visited 3 Branch Regions 2 Pre-discovered Areas 1 | . . 1 . Known Exits Taken . | . . . . Unknown Exits Taken 3 | 1 1 1 . Scrap Searched 2 | . . 2 . Spaces Dug 8 | . . 2 6 Terrain Destroyed 47 | . 36 5 6 Melee 8 | . . 2 6 Projectile 3 | . . 3 . AOE 36 | . 36 . . Terrain Rammed . | . . . . Walls Destroyed . | . . . . Machines Disabled . | . . . . Actions | -11 -10 -10 -9 --------- Run | Yrd Mat Sub Rec Total 2419 | 54 1070 1218 77 Wait 216 | . 160 50 6 Move 1900 | 41 809 987 63 Hop . | . . . . Pick Up 51 | 7 23 21 . Fast Attach 5 | 3 1 1 . Attach 10 | 3 5 2 . Detach . | . . . . Swap 44 | . 10 34 . Drop 40 | . 3 37 . Fire 102 | . 59 43 . Melee 51 | . . 43 8 Ram . | . . . . Kick . | . . . . Crush . | . . . . Escape Stasis . | . . . . Rewire . | . . . . Trap . | . . . . Miscellaneous . | . . . . Route ------- -11/Scrapyard -10/Materials (discovered 6 exits: [*Mat x3] / [*Min x2] / *Sub) -10/Subcaves -9/Recycling History --------- Turn | Location | Event 10 | -11/Scrapyard | Discovered new exit (range 16) 48 | -11/Scrapyard | Entered Materials 146 | -10/Materials | Discovered new exit (range 11) 264 | -10/Materials | Discovered new exit (range 3) 275 | -10/Materials | Discovered new exit (range 16) 334 | -10/Materials | Build established: Mutant 715 | -10/Materials | Discovered new exit (range 16) 963 | -10/Materials | Discovered new exit (range 9) 1173 | -10/Materials | Discovered new exit (range 15) 1268 | -10/Materials | Entered Subcaves 1269 | -10/Subcaves | Approached by a straggling Scientist 1273 | -10/Subcaves | Ambushed by Subdwellers from Twisted Machinery 1535 | -10/Subcaves | Core integrity fell below 50% 1671 | -10/Subcaves | A swath of the cavern ceiling suddenly collapsed 1799 | -10/Subcaves | Learned location of Zion (-6) 1799 | -10/Subcaves | Met a Zionite searching for "candidates" 2157 | -10/Subcaves | Visited 4L-MR0's lab 2179 | -10/Subcaves | Found Arachnoskeleton 2698 | -10/Subcaves | Shifting Twisted Machinery released Spk. Treads 2882 | -10/Subcaves | Learned Materials garrison access intel 3577 | -10/Subcaves | Core integrity fell below 20% 3819 | -10/Subcaves | Found SUBCON Basin 4044 | -10/Subcaves | Discovered new exit (range 3) 4049 | -10/Subcaves | Entered Recycling 4226 | -9/Recycling | Destroyed by Y-45 Defender with Beam Rifle Last Messages --------------- 03816_ Dropped Sub. Shrapnel Launcher. 03816_ Sub. Shrapnel Launcher crushed and broken. 03817_ Dropped Sub. Beam Cannon. 03817_ Sub. Beam Cannon crushed and broken. 03819_ Acquired SUBCON Basin. 03822_ Subatomizers dissect the Sub. Power Source. 03879_ System corrupted: IFF burst signal emitted. 03909_ Acquired 48 matter. 03952_ DLW|: YJBD1/WREGITAF2Z6P8RQTX H&H2/|S: 04044_ EXIT=FOUND LOCATION=UNKNOWN GOAL=ESCAPE 04065_ K| U99CKZJZVUAKQTPUZS/87=3S7FH:ES 04113_ System corrupted: Matter fused (-10). 04193_ Y-45 Defender springs to life. 04209_ System corrupted: Matter fused (-10). 04222_ Y-45 Defender destroyed. Map ----- +----------------------------------------------------+ | ????????????????????????????????????????? | | ????????????????????????????????????????? | | ????????????????????????????????????????? | | ????????????????????????????????????????? | | ????????????????????????????????????????? | | ????????????????????????????????????????? | | ????????????????????????????????????????? | | ????????????????????????????????????????? | | ????????????????????????????????????????? | | ????????????????????????????????????????? | | ????????????????????????????????????????? | | ????????????????????????????????????????? | | ??????# ??????????????????????????????? | | ?????? #?????????????????????????????? | | ?????## ########+#????????????????????? | | ?????? ????????????????????? | | ??????# ????????????????????? | | ??????# ????????????????????? | | ??????# #????????????????????? | | ??????# ##???????????????????? | | ??????# ? ? "#???????????????????? | | ??????# #?#%%?## #????????????????????? | | ??????# #?#%%?#" ##???????????????????? | | ????### #??#*### "#???????????????????? | | ????#"" #####%##/##???????????????????? | | ????#"Y # !!@ Y#????????????????????? | | ?????"" # #????????????????????? | | ??????# # #????????????????????? | | ??????# # ##???????????????????? | | ????### + ;#???????????????????? | | ????#"" # ##???????????????????? | | ????#"Y # #????????????????????? | | ????#"" # r#???????????????????? | | ????### # ##???????????????????? | | ??????# ######r###????????????????????? | | ??????#####????###??????????????????????? | | ????????????????????????????????????????? | | ????????????????????????????????????????? | | ????????????????????????????????????????? | | ????????????????????????????????????????? | | | | | | | | | | | | | | | | | | | | | +----------------------------------------------------+ Best States ------------- Heat Dissipation 25 Energy Generation 15 Energy Capacity 250 Matter Stores 300 Matter Capacity 300 Sight Range 16 Terrain Scan Density 10 Armor Coverage 150 Evasion (%) 50 Recoil Reduction 2 Item Schematics ----------------- None Robot Schematics ------------------ None Fabricated ------------ Nothing Repaired ---------- Nothing Alien Tech Used ----------------- None Achievements -------------- None Challenges ------------ None Game ------ Seed JammingActuatorSpecial Manual? 0 Play Time 00:22:17 Cumulative 101.8 hours Start 2025.10.08 @ 19:39:28 End 2025.10.08 @ 20:01:17 Sessions 1 Manual Loads 0 Difficulty Rogue Special Mode None Game No. 164 Rogue 163 Adventurer 1 Explorer 0 Win Type - Total 1 Types 0/0/0/1/0/0/0/0/0/0 Lore% 57 Gallery% 52 Achievement% 49 Wizard Run 0 Options --------- Layout 1 ASCII 0 Keyboard 0 Movement Mouse Keybinds 0 Fullscreen 1 Font 24/Smallcaps Map View 50x35 Zoom Use 0% Tactical HUD 1 Map Filters NONE Filters NONE Steam 1 RUN: 93a98f1d-0768-49d5-b8ea-6fce4746511d